bitfinex/quotes_BTCUSD_20250218
["timestamp","ask_amount","ask_price","bid_price","bid_amount"]
[1739913377328,0.01644898,95287.0,95261.0,0.077]
[1739913377947,0.01644898,95287.0,95264.0,0.157456]
[1739913378151,0.01644898,95287.0,95265.0,0.157455]
[1739913378355,0.01644898,95287.0,95267.0,0.157451]
[1739913378574,0.01644898,95287.0,95277.0,0.08402699]
[1739913378871,0.01644898,95287.0,95278.0,0.10355305]
[1739913379058,0.01644898,95287.0,95263.0,0.023]
[1739913379256,0.01644898,95287.0,95262.0,0.08402699]
[1739913379818,0.01644898,95287.0,95266.0,0.157453]
[1739913380164,0.01644898,95287.0,95267.0,0.00104952]
[1739913380376,0.01644898,95287.0,95266.0,0.157453]
[1739913380524,0.01644898,95287.0,95275.0,0.0023404]
[1739913380934,0.01644898,95287.0,95275.0,0.0003404]
[1739913382275,0.48994898,95287.0,95275.0,0.0003404]
[1739913382481,0.07125896,95286.0,95275.0,0.0003404]
[1739913382644,0.22125896,95286.0,95275.0,0.0003404]
[1739913383204,0.15,95286.0,95275.0,0.0003404]
[1739913383783,0.0497,95284.0,95275.0,0.0003404]
[1739913383989,0.0700024,95284.0,95275.0,0.0003404]
[1739913384393,0.0699994,95284.0,95275.0,0.0002694]
[1739913384630,0.2199994,95284.0,95275.0,0.0002694]
[1739913384759,0.02,95281.0,95275.0,0.0002694]
[1739913385358,0.02142523,95276.0,95275.0,0.0002694]
[1739913385563,0.66682063,95276.0,95275.0,0.0002694]
[1739913386023,0.68327506,95276.0,95275.0,0.0002694]
[1739913386258,0.66184983,95276.0,95275.0,0.0002694]
[1739913386442,0.51184983,95276.0,95275.0,0.0002694]
[1739913386638,0.66584983,95276.0,95275.0,0.0002694]
[1739913387049,0.66184983,95276.0,95275.0,0.0002694]
[1739913387256,0.66584983,95276.0,95275.0,0.0002694]
[1739913387702,0.66184983,95276.0,95275.0,0.0002694]
[1739913388990,0.66284983,95276.0,95275.0,0.0002694]
[1739913389198,0.66184983,95276.0,95275.0,0.0002694]
[1739913389601,0.66484983,95276.0,95275.0,0.0002694]
[1739913389759,0.66184983,95276.0,95275.0,0.0002694]
[1739913389960,0.66384983,95276.0,95275.0,0.0002694]
[1739913390167,0.73223481,95276.0,95275.0,0.0002694]
[1739913390388,0.73023481,95276.0,95275.0,0.0002694]
[1739913390662,0.73423481,95276.0,95275.0,0.0002694]
[1739913390901,1.0743818,95276.0,95275.0,0.0002694]
[1739913391176,6.2206818,95276.0,95275.0,0.0002694]
[1739913391393,6.2191006,95276.0,95275.0,0.0002694]
[1739913391812,6.2190977,95276.0,95275.0,0.0002694]
[1739913391953,0.02,95264.0,95260.0,0.00018833]
[1739913392187,0.4937408,95264.0,95260.0,0.00018833]
[1739913392355,0.15,95263.0,95260.0,0.00018833]
[1739913392945,0.00421,95262.0,95260.0,0.00018833]
[1739913394925,0.157,95263.0,95260.0,0.00018833]
[1739913395347,0.15,95261.0,95260.0,0.00018833]
[1739913395521,0.09959201,95262.0,95260.0,0.00018833]
[1739913395719,0.01121,95262.0,95260.0,0.00018833]
[1739913396127,0.01645661,95262.0,95260.0,0.00018833]
[1739913396451,0.02066661,95262.0,95260.0,0.00018833]
[1739913396630,0.01645661,95262.0,95260.0,3.3e-07]
[1739913397326,0.02884686,95261.0,95260.0,3.3e-07]
[1739913397533,0.10227022,95261.0,95260.0,3.3e-07]
[1739913398351,0.10227022,95261.0,95250.0,1.3e-07]
[1739913399127,0.10827022,95261.0,95250.0,1.3e-07]
[1739913399334,0.10227022,95261.0,95250.0,1.3e-07]
[1739913399562,0.15,95259.0,95250.0,1.3e-07]
[1739913399737,0.25250365,95259.0,95250.0,1.3e-07]
[1739913400133,0.15,95259.0,95250.0,1.3e-07]
[1739913401820,0.157,95259.0,95250.0,1.3e-07]
[1739913402335,0.15,95259.0,95250.0,1.3e-07]
[1739913402531,0.157,95259.0,95250.0,1.3e-07]
[1739913402737,0.02884686,95261.0,95231.0,0.00016]
[1739913402738,0.15,95240.0,95231.0,0.00016]
[1739913402928,0.623787,95240.0,95231.0,0.00016]
[1739913403353,0.00772069,95235.0,95231.0,0.00016]
[1739913404065,0.00772069,95235.0,95218.0,0.08400113]
[1739913404473,0.22264058,95230.0,95218.0,0.08400113]
[1739913404715,0.62243411,95230.0,95218.0,0.08400113]
[1739913405694,0.62243411,95230.0,95208.0,0.08402699]
[1739913405695,0.15,95227.0,95208.0,0.08402699]
[1739913405952,0.14864931,95222.0,95208.0,0.08402699]
[1739913406442,0.15,95221.0,95208.0,0.08402699]
[1739913406651,0.22304053,95220.0,95208.0,0.08402699]
[1739913406851,0.69689143,95220.0,95208.0,0.08402699]
[1739913407186,0.78087719,95220.0,95208.0,0.08402699]
[1739913407388,0.01646035,95218.0,95208.0,0.08402699]
[1739913409292,0.3873505,95218.0,95208.0,0.08402699]
[1739913409589,0.21301548,95229.0,95208.0,0.08402699]
[1739913409590,0.01646037,95216.0,95208.0,0.08402699]
[1739913409919,0.40381087,95216.0,95208.0,0.08402699]
[1739913410987,0.01646037,95216.0,95208.0,0.08402699]
[1739913411206,0.01646037,95216.0,95208.0,0.08398699]
[1739913413316,0.00816362,95235.0,95208.0,0.08398699]
[1739913413962,0.22304053,95230.0,95208.0,0.08398699]
[1739913414176,0.15,95229.0,95208.0,0.08398699]
[1739913414381,0.22304053,95220.0,95208.0,0.08398699]
[1739913414584,0.5274505,95229.0,95208.0,0.08398699]
[1739913415539,0.02116938,95232.0,95208.0,0.08398699]
[1739913415926,0.02116938,95232.0,95208.0,0.18649064]
[1739913416332,0.01645912,95227.0,95208.0,0.18649064]
[1739913417461,0.01645912,95227.0,95218.0,0.08402699]
[1739913420066,0.0792,95278.0,95221.0,0.0802]
[1739913420268,0.0792,95278.0,95230.0,0.08402699]
[1739913420269,0.00013281,95255.0,95230.0,0.08402699]
[1739913420457,0.00013281,95255.0,95231.0,0.15751]
[1739913420654,0.0164562,95251.0,95230.0,0.18653064]
[1739913420898,0.0001703,95231.0,95230.0,0.34404364]
[1739913421107,0.0001703,95231.0,95230.0,0.36704364]
[1739913421883,0.01662585,95231.0,95230.0,0.36704364]
[1739913422812,0.01662585,95231.0,95230.0,0.20953064]
[1739913423018,0.01762585,95231.0,95230.0,0.37004364]
[1739913423232,0.01662585,95231.0,95230.0,0.36704364]
[1739913423435,0.0001703,95231.0,95230.0,0.36704364]
[1739913424757,0.0011703,95231.0,95230.0,0.37004364]
[1739913425207,0.0011703,95231.0,95230.0,0.21253064]
[1739913425416,0.0001703,95231.0,95230.0,0.18653064]
[1739913425557,0.0001703,95231.0,95217.0,0.3236]
[1739913425758,0.0011703,95231.0,95230.0,0.003]
[1739913426280,0.0011703,95231.0,95208.0,0.0003406]
[1739913426488,0.15,95229.0,95208.0,0.0003406]
[1739913426674,0.03732108,95228.0,95208.0,0.0003406]
[1739913427018,0.15,95219.0,95208.0,0.0003406]
[1739913427801,0.01646149,95217.0,95208.0,0.0003406]
[1739913428008,0.15,95216.0,95208.0,0.0003406]
[1739913428217,0.15013271,95216.0,95208.0,0.0003406]
[1739913428972,0.00795057,95212.0,95208.0,0.0003406]
[1739913429177,0.05618953,95211.0,95208.0,6e-07]
[1739913429378,0.05618953,95211.0,95170.0,0.4039]
[1739913429554,0.15,95205.0,95170.0,0.4039]
[1739913429784,0.5373505,95205.0,95170.0,0.4039]
[1739913430477,0.01646472,95203.0,95170.0,0.4039]
[1739913432044,0.02093191,95202.0,95170.0,0.0803]
[1739913432256,0.02093191,95202.0,95169.0,0.0003402]
[1739913432257,0.15,95188.0,95169.0,0.0003402]
[1739913432464,0.5373505,95188.0,95169.0,0.0003402]
[1739913432826,0.3873505,95188.0,95179.0,0.00015434]
[1739913433161,0.01646677,95186.0,95179.0,0.00015434]
[1739913433372,0.00779101,95192.0,95179.0,0.00015434]
[1739913434124,0.00793398,95198.0,95186.0,0.08402699]
[1739913434471,0.00806664,95198.0,95188.0,0.023]
[1739913434682,0.00013266,95198.0,95190.0,0.023]
[1739913434882,0.00013266,95198.0,95191.0,0.10250365]
[1739913435347,0.00013266,95198.0,95186.0,0.40762699]
[1739913435948,0.02231732,95197.0,95186.0,0.3236]
[1739913436352,0.00013266,95198.0,95186.0,0.3236]
[1739913436958,0.00113266,95198.0,95186.0,0.3236]
[1739913437375,0.01646415,95196.0,95186.0,0.3236]
[1739913437783,0.01646415,95196.0,95188.0,0.21011]
[1739913438002,0.01646415,95196.0,95194.0,0.08402699]
[1739913438144,0.01646415,95196.0,95195.0,0.10250365]
[1739913439383,0.01746415,95196.0,95195.0,0.10250365]
[1739913440201,0.01746415,95196.0,95192.0,0.3236]
[1739913440558,0.01646415,95196.0,95192.0,0.3236]
[1739913440994,0.01746415,95196.0,95192.0,0.3236]
[1739913441196,0.01646415,95196.0,95192.0,0.3236]
[1739913441605,0.01746415,95196.0,95192.0,0.3236]
[1739913442802,0.39491465,95196.0,95192.0,0.3236]
[1739913443004,0.3784505,95196.0,95192.0,0.3236]
[1739913443217,0.001,95196.0,95192.0,0.3236]
[1739913443416,0.06488,95195.0,95192.0,0.3236]
[1739913443617,0.4522305,95195.0,95192.0,0.3236]
[1739913443839,0.3873505,95195.0,95192.0,0.3236]
[1739913444015,0.001,95196.0,95192.0,0.3236]
[1739913444230,0.06488,95195.0,95192.0,0.3236]
[1739913444434,0.4522305,95195.0,95192.0,0.3236]
[1739913446562,0.15,95194.0,95179.0,0.00015434]
[1739913446777,0.15,95188.0,95179.0,0.00015434]
[1739913447611,0.01646802,95186.0,95179.0,0.00015434]
[1739913450092,0.02878695,95186.0,95179.0,0.00015434]
[1739913450905,0.15,95185.0,95179.0,0.00015434]
[1739913453769,0.1955,95183.0,95179.0,1e-08]
[1739913454400,0.004213,95182.0,95169.0,0.0003402]
[1739913454612,0.00958684,95176.0,95141.0,0.3236]
[1739913454819,0.15,95163.0,95130.0,0.3236]
[1739913455031,0.01052537,95162.0,95130.0,0.3236]
[1739913455417,0.00777376,95158.0,95130.0,0.3236]
[1739913455643,0.01066342,95157.0,95130.0,0.3236]
[1739913455821,0.307637,95155.0,95130.0,0.3236]
[1739913455963,0.31838326,95155.0,95130.0,0.3236]
[1739913456164,0.33940474,95155.0,95130.0,0.3236]
[1739913456367,0.31838326,95155.0,95130.0,0.3236]
[1739913457407,0.33485581,95155.0,95130.0,0.3236]
[1739913458179,0.33485581,95155.0,95118.0,0.023]
[1739913459541,0.157642,95152.0,95151.0,1e-06]
[1739913459744,0.157642,95152.0,95112.0,0.0457406]
[1739913459745,0.15,95151.0,95112.0,0.0457406]
[1739913459984,0.360218,95139.0,95114.0,0.023]
[1739913460195,0.1577,95117.0,95114.0,0.023]
[1739913460559,0.157698,95118.0,95114.0,0.023]
[1739913460774,0.210253,95124.0,95114.0,0.023]
[1739913460977,0.157698,95118.0,95114.0,0.023]
[1739913461383,0.00013248,95118.0,95114.0,0.023]
[1739913462123,0.15783048,95118.0,95114.0,0.023]
[1739913462399,0.00013248,95118.0,95114.0,0.023]
[1739913462649,0.157703,95115.0,95114.0,0.023]
[1739913462892,0.157703,95115.0,95112.0,0.0457406]
[1739913462893,0.00013248,95118.0,95112.0,0.0003406]
[1739913463134,0.157707,95113.0,95112.0,0.0003406]
[1739913463374,0.5450575,95113.0,95112.0,0.0003406]
[1739913463848,0.157707,95113.0,95112.0,0.0003406]
[1739913464324,0.00013248,95118.0,95112.0,0.0003406]
[1739913464572,0.210267,95117.0,95112.0,0.0003406]
[1739913465024,0.158705,95115.0,95112.0,0.0003406]
[1739913465263,0.00013248,95118.0,95114.0,0.023]
[1739913465496,0.00013248,95118.0,95117.0,0.2562]
[1739913465753,0.00013248,95118.0,95117.0,0.35870365]
[1739913466002,0.00013248,95118.0,95117.0,0.20100365]
[1739913466236,0.00013248,95118.0,95117.0,0.20000365]
[1739913466444,0.00013248,95118.0,95117.0,0.35770365]
[1739913466679,0.00113248,95118.0,95117.0,0.35770365]
[1739913468589,0.00013248,95118.0,95117.0,0.35770365]
[1739913468827,0.00113248,95118.0,95117.0,0.36487405]
[1739913469074,0.00113248,95118.0,95117.0,0.35787405]
[1739913469308,0.00213248,95118.0,95117.0,0.41227405]
[1739913469539,0.00113248,95118.0,95117.0,0.40527405]
[1739913469785,0.00013248,95118.0,95117.0,0.40527405]
[1739913470015,0.00113248,95118.0,95117.0,0.41227405]
[1739913471681,0.01760678,95118.0,95117.0,0.41227405]
[1739913471899,0.01760678,95118.0,95117.0,0.41223405]
[1739913472102,0.01760678,95118.0,95117.0,0.25453405]
[1739913472585,0.17530478,95118.0,95117.0,0.13267405]
[1739913472830,0.17530478,95118.0,95117.0,0.0071704]
[1739913473069,0.15883048,95118.0,95117.0,0.0071704]
[1739913475863,0.00113248,95118.0,95117.0,0.0071704]
[1739913476070,0.17530676,95118.0,95117.0,0.0071704]
[1739913476596,0.01760876,95118.0,95117.0,0.0071704]
[1739913476772,0.17530676,95118.0,95117.0,0.0071704]
[1739913477169,0.01760876,95118.0,95117.0,0.0071704]
[1739913477387,0.01760876,95118.0,95117.0,0.13267405]
[1739913478014,0.01760876,95118.0,95117.0,0.29037405]
[1739913478590,0.01760876,95118.0,95117.0,0.13267405]
[1739913479201,0.17430676,95118.0,95117.0,0.0001704]
[1739913479562,0.17530676,95118.0,95117.0,0.0051704]
[1739913480657,0.17564776,95118.0,95117.0,0.0051704]
[1739913480856,0.17564776,95118.0,95117.0,0.0001704]
[1739913480857,0.17464776,95118.0,95117.0,0.0001704]
[1739913481118,0.56199826,95118.0,95117.0,0.0001704]
[1739913481332,0.81550191,95118.0,95117.0,0.0071704]
[1739913481547,0.81550191,95118.0,95117.0,0.0001704]
[1739913481765,0.81550191,95118.0,95117.0,0.0041704]
[1739913481972,0.81450191,95118.0,95117.0,0.0041704]
[1739913482173,0.71199826,95118.0,95117.0,0.0001704]
[1739913482584,0.71199826,95118.0,95117.0,0.0031704]
[1739913482788,0.71199826,95118.0,95117.0,0.0001704]
[1739913483170,0.69552198,95118.0,95117.0,0.0001704]
[1739913483781,0.38782398,95118.0,95117.0,0.18137405]
[1739913483986,0.00047348,95118.0,95117.0,0.33907405]
[1739913484570,0.00047348,95118.0,95117.0,0.36207405]
[1739913485001,0.00047348,95118.0,95117.0,0.51207405]
[1739913485201,0.00047348,95118.0,95117.0,0.51607405]
[1739913485813,4.8e-07,95118.0,95117.0,0.55148881]
[1739913485983,0.01647239,95130.0,95128.0,0.0831]
[1739913486194,0.01647239,95130.0,95129.0,0.36721064]
[1739913486794,0.01647239,95130.0,95129.0,0.36621064]
[1739913487260,0.01647239,95130.0,95129.0,0.36665357]
[1739913488477,0.01747239,95130.0,95129.0,0.37365357]
[1739913488896,0.01747239,95130.0,95129.0,0.28962658]
[1739913492488,0.210196,95150.0,95129.0,0.10994658]
[1739913492775,0.210165,95163.0,95132.0,0.023]
[1739913492973,0.210165,95163.0,95129.0,0.10994658]
[1739913492974,0.15,95141.0,95129.0,0.00744293]
[1739913493180,0.308019,95130.0,95129.0,0.00744293]
[1739913493388,0.308019,95130.0,95129.0,0.00044293]
[1739913493595,0.6953695,95130.0,95129.0,0.00744293]
[1739913493840,0.5832915,95130.0,95129.0,0.00744293]
[1739913494041,0.3876915,95130.0,95129.0,0.00744293]
[1739913494250,0.000341,95130.0,95129.0,0.00744293]
[1739913494453,0.000341,95130.0,95129.0,0.03044293]
[1739913494657,0.000341,95130.0,95129.0,0.29062658]
[1739913495068,0.000341,95130.0,95129.0,0.28362658]
[1739913495848,0.01781428,95130.0,95129.0,0.29062658]
[1739913496055,0.00942267,95130.0,95129.0,0.47596345]
[1739913496237,0.0003408,95186.0,95163.0,0.023]
[1739913496433,0.0003408,95186.0,95165.0,0.023]
[1739913496651,0.09426817,95169.0,95167.0,0.023]
[1739913496851,0.09426817,95169.0,95168.0,0.12550365]
[1739913497055,0.09426817,95169.0,95168.0,0.023]
[1739913497542,0.0943996,95169.0,95168.0,0.023]
[1739913497746,0.1592796,95169.0,95168.0,0.12550365]
[1739913497920,0.0943996,95169.0,95168.0,0.12550365]
[1739913499538,0.0943996,95169.0,95168.0,0.13250365]
[1739913499990,0.0943996,95169.0,95168.0,0.27655424]
[1739913500450,6e-07,95169.0,95168.0,0.36870365]
[1739913500693,6e-07,95169.0,95168.0,0.36170365]
[1739913500939,0.01646397,95184.0,95183.0,0.330591]
[1739913501180,0.01646397,95184.0,95183.0,0.43309465]
[1739913501944,0.0003408,95186.0,95185.0,0.350587]
[1739913502164,0.0003408,95186.0,95185.0,0.47309065]
[1739913502381,0.000341,95226.0,95197.0,0.023]
[1739913502572,0.000341,95226.0,95197.0,0.10355372]
[1739913503007,0.000341,95226.0,95197.0,0.06854109]
[1739913503190,0.000341,95226.0,95197.0,0.06959116]
[1739913503806,0.00047215,95198.0,95197.0,0.06959116]
[1739913504033,0.00047215,95198.0,95197.0,0.25784097]
[1739913504252,0.00047215,95198.0,95197.0,0.23310809]
[1739913504455,0.00047215,95198.0,95197.0,0.27920809]
[1739913504658,0.00047215,95198.0,95197.0,0.45220809]
[1739913504872,0.00047215,95198.0,95197.0,0.30220809]
[1739913505734,0.00047215,95198.0,95197.0,0.29520809]
[1739913506236,0.00047215,95198.0,95197.0,0.45220809]
[1739913508079,0.000341,95226.0,95213.0,0.237141]
[1739913508313,0.01645954,95224.0,95213.0,0.36308758]
[1739913509231,0.000341,95226.0,95213.0,0.55308758]
[1739913509456,0.000341,95226.0,95213.0,0.59343641]
[1739913510076,0.000341,95226.0,95213.0,0.60043641]
[1739913510284,0.000341,95226.0,95225.0,0.327521]
[1739913510463,0.000341,95226.0,95225.0,0.50232465]
[1739913510672,0.000341,95226.0,95225.0,0.54709579]
[1739913511236,3e-07,95238.0,95237.0,0.04]
[1739913511444,3e-07,95238.0,95237.0,0.47405406]
[1739913511676,3e-07,95238.0,95237.0,0.47300465]
[1739913511876,3e-07,95238.0,95237.0,0.45300465]
[1739913512066,3e-07,95238.0,95237.0,0.43300465]
[1739913512258,3e-07,95238.0,95237.0,0.45300465]
[1739913512489,3e-07,95238.0,95237.0,0.43300465]
[1739913512689,0.0002484,95260.0,95245.0,0.157487]
[1739913512898,0.0002484,95260.0,95246.0,0.10250365]
[1739913513309,0.157479,95251.0,95246.0,0.10250365]
[1739913513516,0.157485,95247.0,95246.0,0.10250365]
[1739913513925,0.15761638,95247.0,95246.0,0.10250365]
[1739913514132,0.00013138,95247.0,95246.0,0.10250365]
[1739913514345,0.00013138,95247.0,95246.0,0.1265534]
[1739913514554,0.00013138,95247.0,95246.0,0.2840394]
[1739913514753,0.00013138,95247.0,95246.0,0.28298965]
[1739913515130,0.00013138,95247.0,95246.0,0.12550365]
[1739913515340,0.00013138,95247.0,95246.0,0.28298965]
[1739913515566,0.00013138,95247.0,95246.0,0.28498965]
[1739913515776,0.00013138,95247.0,95246.0,0.28298965]
[1739913515985,0.00013138,95247.0,95246.0,0.50838965]
[1739913516542,0.00013138,95247.0,95246.0,0.51538965]
[1739913516749,0.00013138,95247.0,95246.0,0.20090365]
[1739913516953,0.01658274,95247.0,95246.0,0.10355319]
[1739913517156,0.01658274,95247.0,95246.0,0.28998965]
[1739913517859,0.01675304,95247.0,95246.0,0.28998965]
[1739913518452,0.01675304,95247.0,95246.0,0.28298965]
[1739913518855,0.01675304,95247.0,95246.0,0.28998965]
[1739913519055,0.01675304,95247.0,95246.0,0.28298965]
[1739913519368,0.01675304,95247.0,95246.0,0.28998965]
[1739913519525,0.01675304,95247.0,95246.0,0.28298965]
[1739913519925,0.01675304,95247.0,95246.0,0.28998965]
[1739913520155,0.01675304,95247.0,95246.0,0.28298965]
[1739913520350,0.01675304,95247.0,95246.0,0.43298965]
[1739913520554,0.01675304,95247.0,95246.0,0.43998965]
[1739913521637,0.01675304,95247.0,95246.0,1.30328965]
[1739913521988,0.01675304,95247.0,95246.0,1.31028965]
[1739913522395,0.01675304,95247.0,95246.0,1.30328965]
[1739913522700,0.01675304,95247.0,95246.0,1.31028965]
[1739913522843,0.01675304,95247.0,95246.0,1.30328965]
[1739913523072,0.00030168,95247.0,95246.0,1.30328965]
[1739913523266,0.00030168,95247.0,95246.0,1.31028965]
[1739913523481,0.00030168,95247.0,95246.0,1.30328965]
[1739913523916,0.00030168,95247.0,95246.0,1.31028965]
[1739913524115,0.00030168,95247.0,95246.0,1.16028965]
[1739913524583,0.00030168,95247.0,95246.0,1.00280365]
[1739913524806,0.00030168,95247.0,95246.0,0.97980365]
[1739913525042,0.00030168,95247.0,95246.0,0.97280365]
[1739913525260,0.00030168,95247.0,95246.0,1.15328965]
[1739913525704,0.00030168,95247.0,95246.0,1.16028965]
[1739913525933,0.00030168,95247.0,95246.0,1.15328965]
[1739913526135,0.01675345,95247.0,95246.0,1.15328965]
[1739913526348,0.01675345,95247.0,95246.0,1.16028965]
[1739913526548,0.01675345,95247.0,95246.0,1.15328965]
[1739913527401,0.01675345,95247.0,95246.0,1.16028965]
[1739913528458,0.00490016,95247.0,95246.0,1.17983532]
[1739913528705,0.209901,95283.0,95248.0,0.209978]
[1739913528919,0.157445,95272.0,95260.0,0.157463]
[1739913529120,0.209937,95267.0,95262.0,0.023]
[1739913529334,0.157457,95264.0,95263.0,0.10250365]
[1739913529567,0.0001702,95247.0,95246.0,0.8703]
[1739913529742,0.0001703,95334.0,95246.0,1.02920365]
[1739913529983,0.01582557,95321.0,95296.0,0.023]
[1739913530186,0.0001703,95334.0,95310.0,0.22304053]
[1739913530412,0.0001703,95334.0,95319.0,0.157364]
[1739913530770,0.0001703,95334.0,95320.0,0.00104888]
[1739913530771,0.01612064,95334.0,95320.0,0.00104888]
[1739913530891,0.01612064,95334.0,95312.0,0.8703]
[1739913531086,0.01643912,95326.0,95312.0,0.3246]
[1739913531293,0.01643912,95326.0,95313.0,0.00104895]
[1739913531505,0.01643912,95326.0,95325.0,0.157356]
[1739913531716,0.01643912,95326.0,95325.0,0.28285965]
[1739913532800,0.01643912,95326.0,95325.0,0.83551965]
[1739913533008,0.00130163,95327.0,95325.0,0.83551965]
[1739913533196,0.00130163,95327.0,95326.0,0.12550365]
[1739913534294,0.00130163,95327.0,95326.0,0.12655236]
[1739913534866,0.00130163,95327.0,95326.0,0.12550365]
[1739913535278,0.00130163,95327.0,95326.0,0.1265524]
[1739913535695,0.00130163,95327.0,95326.0,1.19054499]
[1739913535908,0.00130163,95327.0,95326.0,1.18949624]
[1739913536106,0.00130163,95327.0,95326.0,1.33949624]
[1739913536517,0.00130163,95327.0,95326.0,1.33249624]
[1739913536930,0.00130163,95327.0,95326.0,1.33949624]
[1739913538053,0.00130163,95327.0,95326.0,1.33249624]
[1739913538298,0.00130163,95327.0,95326.0,1.33949624]
[1739913538931,0.00130163,95327.0,95326.0,1.35421274]
[1739913539344,0.00130163,95327.0,95326.0,1.37421274]
[1739913540552,0.00130163,95327.0,95326.0,1.56218195]
[1739913540709,0.00130163,95327.0,95326.0,1.59594385]
[1739913540907,0.00130163,95327.0,95326.0,1.53156674]
[1739913541112,0.00130163,95327.0,95326.0,1.59594385]
[1739913541313,0.00130163,95327.0,95326.0,1.53156674]
[1739913541511,0.00140163,95327.0,95326.0,1.53156674]
[1739913542093,0.0001703,95334.0,95333.0,0.347343]
[1739913542094,3e-07,95334.0,95333.0,0.347343]
[1739913542300,3e-07,95334.0,95333.0,0.47284665]
[1739913542301,0.00039781,95334.0,95333.0,0.47284665]
[1739913542506,0.00039781,95334.0,95333.0,0.50660855]
[1739913542707,0.00039781,95334.0,95333.0,0.51722376]
[1739913542911,0.00039781,95334.0,95333.0,0.45284665]
[1739913543114,0.00039781,95334.0,95333.0,0.48660855]
[1739913543461,0.209702,95374.0,95333.0,0.48660855]
[1739913543667,0.15,95392.0,95351.0,0.10250365]
[1739913543867,0.157283,95370.0,95359.0,0.1573]
[1739913544068,0.209678,95385.0,95360.0,0.10355215]
[1739913544296,0.15004,95391.0,95362.0,0.023]
[1739913544470,0.06652,95390.0,95364.0,0.023]
[1739913544674,0.01473697,95391.0,95366.0,0.023]
[1739913544872,0.01473697,95391.0,95367.0,0.10250365]
[1739913544873,0.157285,95368.0,95367.0,0.10250365]
[1739913545259,0.0755,95369.0,95352.0,0.3246]
[1739913545456,0.1573,95359.0,95353.0,0.10250365]
[1739913545691,0.0498,95364.0,95353.0,0.10250365]
[1739913546156,0.0498,95364.0,95354.0,0.023]
[1739913546340,0.06652,95363.0,95356.0,0.023]
[1739913546682,0.1573,95359.0,95358.0,0.023]
[1739913546882,0.1573,95359.0,95358.0,0.10250365]
[1739913547235,0.01643423,95362.0,95352.0,0.32503751]
[1739913547436,0.15731,95353.0,95352.0,0.32503751]
[1739913548442,0.01643423,95362.0,95353.0,0.007]
[1739913548655,0.157308,95354.0,95353.0,0.007]
[1739913548857,0.157308,95354.0,95352.0,0.42754116]
[1739913549056,0.157308,95354.0,95352.0,0.43454116]
[1739913549414,0.01643423,95362.0,95353.0,0.10250365]
[1739913549530,0.01643423,95362.0,95354.0,0.02404858]
[1739913549761,0.1267,95379.0,95356.0,0.023]
[1739913549968,0.1573,95359.0,95358.0,0.023]
[1739913550170,0.01643463,95361.0,95358.0,0.12550365]
[1739913550464,0.01643463,95361.0,95360.0,0.023]
[1739913550718,0.01643463,95361.0,95360.0,0.12550365]
[1739913551295,0.01643463,95361.0,95360.0,0.45010365]
[1739913551493,0.01593463,95361.0,95360.0,0.45010365]
[1739913552994,0.209718,95367.0,95360.0,0.45010365]
[1739913553364,0.0005,95429.0,95362.0,0.023]
[1739913553600,0.209632,95405.0,95367.0,0.157286]
[1739913553808,0.157271,95377.0,95369.0,0.023]
[1739913554011,0.209689,95379.0,95371.0,0.023]
[1739913554215,0.209667,95389.0,95373.0,0.023]
[1739913554413,0.2222628,95400.0,95375.0,0.023]
[1739913554615,0.157271,95377.0,95376.0,0.10250365]
[1739913555209,0.209652,95396.0,95376.0,0.10250365]
[1739913555383,5.069e-05,95400.0,95376.0,0.10250365]
[1739913555587,0.15727,95377.0,95376.0,0.10250365]
[1739913555892,0.157272,95376.0,95375.0,0.002]
[1739913556107,0.157272,95376.0,95375.0,0.10250365]
[1739913556898,0.157287,95367.0,95366.0,0.5457]
[1739913557244,0.157287,95367.0,95366.0,0.10250365]
[1739913557662,0.17372041,95367.0,95366.0,0.10250365]
[1739913558075,0.157292,95364.0,95363.0,0.3246]
[1739913558279,0.157292,95364.0,95363.0,0.42710365]
[1739913559671,0.157292,95364.0,95363.0,0.43410365]
[1739913560096,0.157292,95364.0,95363.0,0.10950365]
[1739913560794,0.01643341,95367.0,95366.0,0.157288]
[1739913561057,0.01643341,95367.0,95366.0,0.10250365]
[1739913561259,0.01643341,95367.0,95366.0,0.25979165]
[1739913561431,0.01643341,95367.0,95366.0,0.28279165]
[1739913561831,0.01643341,95367.0,95366.0,1.15309165]
[1739913562378,0.01643341,95367.0,95366.0,1.00280365]
[1739913562590,0.01643341,95367.0,95366.0,0.42710365]
[1739913562742,0.157278,95372.0,95366.0,0.42710365]
[1739913563104,0.157275,95374.0,95367.0,0.10250365]
[1739913563222,0.22221211,95390.0,95367.0,0.10250365]
[1739913563630,0.157279,95372.0,95367.0,0.10250365]
[1739913564132,0.22221211,95390.0,95367.0,0.10250365]
[1739913564394,0.209667,95389.0,95368.0,0.8933]
[1739913564622,0.157266,95380.0,95372.0,0.157278]
[1739913564892,0.209667,95389.0,95373.0,0.10250365]
[1739913565102,0.157267,95379.0,95373.0,0.10250365]
[1739913565464,0.209684,95382.0,95373.0,0.10250365]
[1739913565465,0.157265,95381.0,95373.0,0.10250365]
[1739913565672,5.069e-05,95400.0,95374.0,0.54674837]
[1739913565895,4e-05,95391.0,95375.0,0.97280365]
[1739913566107,4e-05,95391.0,95386.0,0.157254]
[1739913566333,4e-05,95391.0,95387.0,0.10250365]
[1739913566539,0.01643101,95388.0,95387.0,0.58435765]
[1739913567370,0.01643101,95388.0,95387.0,1.15349516]
[1739913567762,0.17368301,95388.0,95387.0,0.43454116]
[1739913567960,0.01643101,95388.0,95387.0,0.43454116]
[1739913568252,0.01643101,95388.0,95387.0,0.42754116]
[1739913568522,0.01643101,95388.0,95387.0,0.43454116]
[1739913568523,0.17368301,95388.0,95387.0,0.43454116]
[1739913568743,0.17368301,95388.0,95387.0,0.42754116]
[1739913569568,0.1735906,95388.0,95387.0,0.33203751]
[1739913570699,0.1735906,95388.0,95387.0,0.32503751]
[1739913570930,0.1735906,95388.0,95387.0,0.43454116]
[1739913571350,0.1735906,95388.0,95387.0,0.42754116]
[1739913571555,0.1735906,95388.0,95387.0,0.43454116]
[1739913571789,0.1735906,95388.0,95387.0,0.33203751]
[1739913571925,0.1735906,95388.0,95387.0,0.32503751]
[1739913572129,0.1735906,95388.0,95387.0,0.00743751]
[1739913572445,0.1735906,95388.0,95387.0,0.00043751]
[1739913572658,0.1735906,95388.0,95387.0,0.00743751]
[1739913573449,0.157252,95388.0,95387.0,0.00743751]
[1739913574502,0.157252,95388.0,95387.0,0.00043751]
[1739913575225,4e-05,95391.0,95387.0,0.10294116]
[1739913575427,0.15725,95389.0,95388.0,0.10250365]
[1739913575767,4e-05,95391.0,95388.0,0.10250365]
[1739913575974,0.15725,95389.0,95388.0,0.10250365]